[Event "*** Titled Tuesday Blitz"]
[Site "Chess.com"]
[Date "2020.05.26"]
[Round "3"]
[White "AtabayevSaparmyrat"]
[Black "LuckSlayeer"]
[Result "0-1"]
[WhiteElo "2794"]
[BlackElo "2462"]
[TimeControl "180+1"]
[EndTime "10:30:11 PDT"]
[Termination "LuckSlayeer won by resignation"]

1. e4 {[%clk 0:03:00]} 1... c5 {[%clk 0:02:59.8]} 2. Nf3 {[%clk 0:03:00.2]} 2...
Nc6 {[%clk 0:03:00.3]} 3. d4 {[%clk 0:03:00.7]} 3... cxd4 {[%clk 0:03:01.2]} 4.
Nxd4 {[%clk 0:03:01.6]} 4... e5 {[%clk 0:03:01.9]} 5. Nb5 {[%clk 0:03:01.8]}
5... d6 {[%clk 0:03:02.5]} 6. N1c3 {[%clk 0:03:02.2]} 6... a6 {[%clk 0:03:03.1]}
7. Na3 {[%clk 0:03:02.6]} 7... b5 {[%clk 0:03:03.8]} 8. Nd5 {[%clk 0:03:02.8]}
8... Nce7 {[%clk 0:03:04.6]} 9. c4 {[%clk 0:03:00.7]} 9... Nxd5 {[%clk
0:03:05.1]} 10. exd5 {[%clk 0:03:00.4]} 10... bxc4 {[%clk 0:03:05.3]} 11. Nxc4
{[%clk 0:03:00.1]} 11... Nf6 {[%clk 0:03:03.2]} 12. Be3 {[%clk 0:02:54.1]} 12...
Rb8 {[%clk 0:03:03.1]} 13. Qa4+ {[%clk 0:02:49.1]} 13... Bd7 {[%clk 0:02:30.4]}
14. Qxa6 {[%clk 0:02:48.9]} 14... Nxd5 {[%clk 0:01:32]} 15. O-O-O {[%clk
0:02:48.7]} 15... Nb4 {[%clk 0:01:09.2]} 16. Qa7 {[%clk 0:01:08.1]} 16... Ra8
{[%clk 0:00:55.4]} 17. Qb6 {[%clk 0:01:08.1]} 17... Nxa2+ {[%clk 0:00:43.2]} 18.
Kb1 {[%clk 0:01:06.9]} 18... Nc3+ {[%clk 0:00:39]} 19. bxc3 {[%clk 0:00:44.1]}
19... Rb8 {[%clk 0:00:38.8]} 20. Kc1 {[%clk 0:00:28.3]} 20... Rxb6 {[%clk
0:00:37]} 21. Bxb6 {[%clk 0:00:29.2]} 21... Qa8 {[%clk 0:00:34.4]} 22. Bd3
{[%clk 0:00:22.4]} 22... Be7 {[%clk 0:00:26.5]} 23. Kd2 {[%clk 0:00:19.2]} 23...
O-O {[%clk 0:00:23.4]} 24. Ra1 {[%clk 0:00:19.3]} 24... Qxg2 {[%clk 0:00:20.2]}
25. Rhg1 {[%clk 0:00:19.6]} 25... Qf3 {[%clk 0:00:14.3]} 26. Ra7 {[%clk
0:00:18.8]} 26... Bb5 {[%clk 0:00:04.9]} 27. Rxe7 {[%clk 0:00:17.4]} 27... Bxc4
{[%clk 0:00:04.5]} 28. Bxc4 {[%clk 0:00:18.3]} 28... Qf4+ {[%clk 0:00:05]} 29.
Kd3 {[%clk 0:00:14.5]} 29... Qf3+ {[%clk 0:00:05.5]} 30. Kc2 {[%clk 0:00:14.3]}
30... Qe4+ {[%clk 0:00:04.7]} 31. Bd3 {[%clk 0:00:14.1]} 31... Qa4+ {[%clk
0:00:04.9]} 32. Kd2 {[%clk 0:00:14.5]} 32... Qa2+ {[%clk 0:00:03.9]} 33. Bc2
{[%clk 0:00:14.6]} 33... Qd5+ {[%clk 0:00:03.7]} 34. Kc1 {[%clk 0:00:13.6]}
34... Rb8 {[%clk 0:00:03.9]} 35. Rc7 {[%clk 0:00:09.8]} 35... g6 {[%clk
0:00:03.6]} 36. Be3 {[%clk 0:00:09.8]} 36... Kg7 {[%clk 0:00:02.9]} 37. Rd1
{[%clk 0:00:09.7]} 37... Qa5 {[%clk 0:00:03.2]} 38. Kd2 {[%clk 0:00:09.4]} 38...
Qa3 {[%clk 0:00:03.5]} 39. Rb1 {[%clk 0:00:07.4]} 39... Rxb1 {[%clk 0:00:02.5]}
40. Bxb1 {[%clk 0:00:08.3]} 40... Qa5 {[%clk 0:00:02.8]} 41. Rb7 {[%clk
0:00:07.9]} 41... Qd5+ {[%clk 0:00:03]} 42. Bd3 {[%clk 0:00:08.3]} 42... Qxb7
{[%clk 0:00:03.9]} 43. c4 {[%clk 0:00:09]} 43... Qc7 {[%clk 0:00:04.1]} 44. f4
{[%clk 0:00:08.1]} 44... exf4 {[%clk 0:00:03.9]} 45. Bxf4 {[%clk 0:00:09]} 45...
f6 {[%clk 0:00:04.3]} 46. Bg3 {[%clk 0:00:08.8]} 46... Qc5 {[%clk 0:00:04.5]}
47. Kc3 {[%clk 0:00:09.1]} 47... Qg5 {[%clk 0:00:05.1]} 48. Bxd6 {[%clk
0:00:08.8]} 48... Qc1+ {[%clk 0:00:04.7]} 49. Kd4 {[%clk 0:00:08.9]} 49... Qa1+
{[%clk 0:00:05]} 50. Kd5 {[%clk 0:00:08.6]} 50... Qh1+ {[%clk 0:00:05.2]} 51.
Be4 {[%clk 0:00:08.4]} 51... Qd1+ {[%clk 0:00:05.1]} 52. Kc6 {[%clk 0:00:08.4]}
52... f5 {[%clk 0:00:05.6]} 53. Bd5 {[%clk 0:00:08.5]} 53... Kf6 {[%clk
0:00:05.3]} 54. c5 {[%clk 0:00:08.5]} 54... Qa4+ {[%clk 0:00:05.5]} 55. Kc7
{[%clk 0:00:08.3]} 55... Qa5+ {[%clk 0:00:05.8]} 56. Kd7 {[%clk 0:00:08.4]}
56... Qa7+ {[%clk 0:00:05.1]} 57. Kd8 {[%clk 0:00:07.4]} 57... Qa5+ {[%clk
0:00:04.4]} 58. Kd7 {[%clk 0:00:07.3]} 58... Qa7+ {[%clk 0:00:04.4]} 59. Kd8
{[%clk 0:00:07.4]} 59... f4 {[%clk 0:00:04.7]} 60. Bc6 {[%clk 0:00:03.5]} 60...
Qa5+ {[%clk 0:00:04.2]} 61. Kd7 {[%clk 0:00:03.9]} 61... Qa7+ {[%clk 0:00:03.6]}
62. Bc7 {[%clk 0:00:04.5]} 62... Qa3 {[%clk 0:00:03.3]} 63. Bxf4 {[%clk
0:00:04.7]} 63... Qxc5 {[%clk 0:00:03.4]} 64. Bd6 {[%clk 0:00:05.3]} 64... Qd4
{[%clk 0:00:03.5]} 65. Kc7 {[%clk 0:00:05.4]} 65... Kg5 {[%clk 0:00:03.6]} 66.
Bg3 {[%clk 0:00:05.7]} 66... h5 {[%clk 0:00:03.2]} 67. h4+ {[%clk 0:00:06]}
67... Kg4 {[%clk 0:00:03.2]} 68. Bd6 {[%clk 0:00:06]} 68... Qb2 {[%clk
0:00:02.2]} 69. Be8 {[%clk 0:00:06.9]} 69... Qa2 {[%clk 0:00:02]} 70. Kd7 {[%clk
0:00:07.7]} 70... Kxh4 {[%clk 0:00:02.4]} 71. Bxg6 {[%clk 0:00:08.2]} 71... Qa7+
{[%clk 0:00:02.8]} 72. Ke6 {[%clk 0:00:08.3]} 72... Qe3+ {[%clk 0:00:03.4]} 73.
Be5 {[%clk 0:00:08.3]} 73... Kg4 {[%clk 0:00:03.9]} 74. Bf5+ {[%clk 0:00:08.6]}
74... Kg5 {[%clk 0:00:04.3]} 75. Bh7 {[%clk 0:00:07.7]} 75... Qb6+ {[%clk
0:00:04.7]} 76. Bd6 {[%clk 0:00:07]} 76... Qb3+ {[%clk 0:00:04.8]} 77. Ke7
{[%clk 0:00:06.4]} 77... h4 {[%clk 0:00:05.3]} 78. Bg8 {[%clk 0:00:03.5]} 78...
Qxg8 {[%clk 0:00:04.2]} 79. Bf4+ {[%clk 0:00:04.4]} 79... Kxf4 {[%clk
0:00:04.2]} 0-1

[Event "*** Titled Tuesday Blitz"]
[Site "Chess.com"]
[Date "2020.05.26"]
[Round "3"]
[White "BogdanDeac"]
[Black "RubensCezila"]
[Result "1/2-1/2"]
[WhiteElo "2947"]
[BlackElo "2464"]
[TimeControl "180+1"]
[EndTime "10:30:24 PDT"]
[Termination "Game drawn by agreement"]

1. e4 {[%clk 0:03:00.9]} 1... c6 {[%clk 0:03:00]} 2. Nf3 {[%clk 0:02:59.1]} 2...
d5 {[%clk 0:02:59.8]} 3. d3 {[%clk 0:02:59.6]} 3... Bg4 {[%clk 0:02:57.9]} 4. h3
{[%clk 0:02:57.6]} 4... Bxf3 {[%clk 0:02:57.6]} 5. Qxf3 {[%clk 0:02:57]} 5... e6
{[%clk 0:02:57.6]} 6. Nd2 {[%clk 0:02:57]} 6... Nd7 {[%clk 0:02:55.8]} 7. g3
{[%clk 0:02:56.2]} 7... g6 {[%clk 0:02:50.8]} 8. Bg2 {[%clk 0:02:55.2]} 8... Bg7
{[%clk 0:02:51.3]} 9. Qe2 {[%clk 0:02:54.5]} 9... Ne7 {[%clk 0:02:49.7]} 10. f4
{[%clk 0:02:53.8]} 10... Qb6 {[%clk 0:02:45.9]} 11. c3 {[%clk 0:02:48.1]} 11...
h5 {[%clk 0:02:38.7]} 12. Nf3 {[%clk 0:02:45]} 12... c5 {[%clk 0:02:34.7]} 13.
exd5 {[%clk 0:02:37.2]} 13... Nxd5 {[%clk 0:02:32.3]} 14. Ng5 {[%clk 0:02:37.2]}
14... Nxc3 {[%clk 0:02:22.4]} 15. Qc2 {[%clk 0:02:25.5]} 15... Nb5 {[%clk
0:02:15.3]} 16. O-O {[%clk 0:02:22.5]} 16... Nd4 {[%clk 0:02:04.3]} 17. Qd1
{[%clk 0:02:22.4]} 17... O-O {[%clk 0:02:00.7]} 18. Rb1 {[%clk 0:02:04]} 18...
Rad8 {[%clk 0:01:58.4]} 19. Be3 {[%clk 0:01:54.8]} 19... Qa6 {[%clk 0:01:44.8]}
20. a3 {[%clk 0:01:54.2]} 20... Nf6 {[%clk 0:01:36.3]} 21. Bf2 {[%clk
0:01:51.4]} 21... Rfe8 {[%clk 0:01:28.4]} 22. Re1 {[%clk 0:01:49.6]} 22... b6
{[%clk 0:01:01.3]} 23. Kh2 {[%clk 0:01:46.8]} 23... Nf5 {[%clk 0:00:56.2]} 24.
Bf1 {[%clk 0:01:41.5]} 24... Qb7 {[%clk 0:00:49]} 25. Nf3 {[%clk 0:01:31.4]}
25... Nd5 {[%clk 0:00:39.4]} 26. h4 {[%clk 0:01:27.9]} 26... Nh6 {[%clk
0:00:37.8]} 27. Bh3 {[%clk 0:01:25]} 27... Nf6 {[%clk 0:00:34.4]} 28. Ne5 {[%clk
0:01:23.4]} 28... Qd5 {[%clk 0:00:22.8]} 29. b4 {[%clk 0:01:19.5]} 29... cxb4
{[%clk 0:00:22.5]} 30. axb4 {[%clk 0:01:20.4]} 30... Nhg4+ {[%clk 0:00:22.9]}
31. Bxg4 {[%clk 0:01:16.2]} 31... hxg4 {[%clk 0:00:23.8]} 32. Nxg4 {[%clk
0:01:16.2]} 32... Nxg4+ {[%clk 0:00:23]} 33. Qxg4 {[%clk 0:01:16.2]} 33... Qxd3
{[%clk 0:00:23.4]} 34. Qe2 {[%clk 0:01:16.3]} 34... Bc3 {[%clk 0:00:21.3]} 35.
Rb3 {[%clk 0:01:03.4]} 35... Qxe2 {[%clk 0:00:19.5]} 36. Rxe2 {[%clk 0:01:02.9]}
36... Bf6 {[%clk 0:00:13.7]} 37. Ra2 {[%clk 0:01:01.6]} 37... Rd7 {[%clk
0:00:13.6]} 38. Rba3 {[%clk 0:01:00.2]} 38... Rc8 {[%clk 0:00:13]} 39. Rxa7
{[%clk 0:00:57.4]} 39... Rxa7 {[%clk 0:00:13.2]} 40. Rxa7 {[%clk 0:00:57.8]}
40... Rc4 {[%clk 0:00:12.3]} 41. Ra8+ {[%clk 0:00:53]} 41... Kg7 {[%clk
0:00:12.1]} 42. Bxb6 {[%clk 0:00:50.3]} 42... Rxb4 {[%clk 0:00:12.4]} 43. Bc5
{[%clk 0:00:50.3]} 43... Rb2+ {[%clk 0:00:13]} 44. Kh3 {[%clk 0:00:49.9]} 44...
Rc2 {[%clk 0:00:13.2]} 45. Bf8+ {[%clk 0:00:48.9]} 45... Kh7 {[%clk 0:00:13.6]}
46. Ra7 {[%clk 0:00:44.3]} 46... Kg8 {[%clk 0:00:10.7]} 47. Bd6 {[%clk
0:00:43.3]} 47... Bd4 {[%clk 0:00:09.8]} 48. Ra8+ {[%clk 0:00:42.5]} 48... Kg7
{[%clk 0:00:09.8]} 49. Bf8+ {[%clk 0:00:41.1]} 49... Kh7 {[%clk 0:00:09.8]} 50.
Ra4 {[%clk 0:00:40.9]} 50... Bg1 {[%clk 0:00:09.3]} 51. Ra1 {[%clk 0:00:37.1]}
51... Rh2+ {[%clk 0:00:06.7]} 52. Kg4 {[%clk 0:00:37]} 52... Bd4 {[%clk
0:00:06.9]} 53. Rd1 {[%clk 0:00:34.3]} 53... Bf6 {[%clk 0:00:06.3]} 54. Rd7
{[%clk 0:00:31.9]} 54... Kg8 {[%clk 0:00:06.4]} 55. Bc5 {[%clk 0:00:28.5]} 55...
Rg2 {[%clk 0:00:06.5]} 56. Be3 {[%clk 0:00:25.8]} 56... Re2 {[%clk 0:00:06.3]}
57. Kf3 {[%clk 0:00:24.9]} 57... Re1 {[%clk 0:00:06.6]} 58. Rd3 {[%clk
0:00:22.7]} 58... Rb1 {[%clk 0:00:06.2]} 59. Bf2 {[%clk 0:00:22.4]} 59... Rb7
{[%clk 0:00:06.1]} 60. g4 {[%clk 0:00:21.9]} 60... Rc7 {[%clk 0:00:05.6]} 61.
Be1 {[%clk 0:00:19.3]} 61... Rc1 {[%clk 0:00:05.4]} 62. Bf2 {[%clk 0:00:19.3]}
62... Rc3 {[%clk 0:00:05.3]} 63. Rxc3 {[%clk 0:00:19.1]} 63... Bxc3 {[%clk
0:00:06.2]} 64. Ke4 {[%clk 0:00:15.1]} 64... f5+ {[%clk 0:00:05.4]} 65. Kf3
{[%clk 0:00:15.2]} 65... Kf7 {[%clk 0:00:05.4]} 66. h5 {[%clk 0:00:14.8]} 66...
fxg4+ {[%clk 0:00:05.8]} 67. Kxg4 {[%clk 0:00:14.5]} 67... gxh5+ {[%clk
0:00:06.7]} 68. Kxh5 {[%clk 0:00:15.3]} 68... e5 {[%clk 0:00:06.2]} 69. f5
{[%clk 0:00:14.8]} 69... e4 {[%clk 0:00:06.2]} 70. Kg4 {[%clk 0:00:14.8]} 70...
Bd2 {[%clk 0:00:05.2]} 71. Bd4 {[%clk 0:00:14.8]} 71... e3 {[%clk 0:00:04.1]}
72. Kf3 {[%clk 0:00:14.9]} 72... Bc1 {[%clk 0:00:02.7]} 73. Ke2 {[%clk
0:00:14.4]} 73... Bd2 {[%clk 0:00:02.3]} 74. Kd1 {[%clk 0:00:14.3]} 74... Ke7
{[%clk 0:00:02]} 75. Kc2 {[%clk 0:00:14]} 75... Kf7 {[%clk 0:00:02.5]} 76. Kd3
{[%clk 0:00:13.5]} 76... Ke7 {[%clk 0:00:02.8]} 77. Be5 {[%clk 0:00:13.5]} 77...
Kf7 {[%clk 0:00:03.1]} 78. Bd4 {[%clk 0:00:13.4]} 78... Ke7 {[%clk 0:00:03.7]}
79. Bb2 {[%clk 0:00:13.5]} 79... Kf7 {[%clk 0:00:03.7]} 80. Be5 {[%clk
0:00:13.3]} 80... Ke7 {[%clk 0:00:04]} 81. Bd4 {[%clk 0:00:13.6]} 81... Kf7
{[%clk 0:00:04.3]} 82. Bxe3 {[%clk 0:00:13.9]} 82... Bb4 {[%clk 0:00:02.9]} 83.
Bd4 {[%clk 0:00:13.6]} 83... Be7 {[%clk 0:00:03.2]} 84. Ke4 {[%clk 0:00:14.1]}
84... Bf8 {[%clk 0:00:03.8]} 85. Be5 {[%clk 0:00:14]} 85... Be7 {[%clk
0:00:04.2]} 86. Bf4 {[%clk 0:00:14.1]} 86... Bf8 {[%clk 0:00:04.7]} 87. Be3
{[%clk 0:00:13]} 87... Bg7 {[%clk 0:00:05.2]} 88. Bf4 {[%clk 0:00:12.6]} 88...
Bf8 {[%clk 0:00:05.7]} 89. Be5 {[%clk 0:00:13]} 89... Be7 {[%clk 0:00:05.9]} 90.
Bd4 {[%clk 0:00:12.1]} 90... Bf8 {[%clk 0:00:06.4]} 91. Kd5 {[%clk 0:00:12.1]}
91... Be7 {[%clk 0:00:06.8]} 92. Be3 {[%clk 0:00:12.1]} 92... Bf8 {[%clk
0:00:07]} 93. Bg5 {[%clk 0:00:12.2]} 93... Bg7 {[%clk 0:00:07.2]} 1/2-1/2

[Event "*** Titled Tuesday Blitz"]
[Site "Chess.com"]
[Date "2020.05.26"]
[Round "3"]
[White "Barmen_EV"]
[Black "harkerchess"]
[Result "1/2-1/2"]
[WhiteElo "2451"]
[BlackElo "2058"]
[TimeControl "180+1"]
[EndTime "10:30:45 PDT"]
[Termination "Game drawn by 50-move rule"]

1. d4 {[%clk 0:02:44.2]} 1... d5 {[%clk 0:02:59]} 2. c4 {[%clk 0:02:45.1]} 2...
c6 {[%clk 0:02:59.1]} 3. Nc3 {[%clk 0:02:46]} 3... Nf6 {[%clk 0:02:58.8]} 4. Nf3
{[%clk 0:02:46.2]} 4... dxc4 {[%clk 0:02:59.1]} 5. g3 {[%clk 0:02:45.1]} 5...
Bf5 {[%clk 0:02:58.9]} 6. Ne5 {[%clk 0:02:44.3]} 6... Nbd7 {[%clk 0:02:57.6]} 7.
Nxc4 {[%clk 0:02:43.9]} 7... Nb6 {[%clk 0:02:58.2]} 8. Ne5 {[%clk 0:02:43.5]}
8... Nfd7 {[%clk 0:02:57.6]} 9. Nf3 {[%clk 0:02:42.6]} 9... e6 {[%clk
0:02:56.8]} 10. Bg2 {[%clk 0:02:43.5]} 10... Be7 {[%clk 0:02:56.1]} 11. O-O
{[%clk 0:02:44.4]} 11... O-O {[%clk 0:02:55.7]} 12. b3 {[%clk 0:02:45.3]} 12...
a5 {[%clk 0:02:55.2]} 13. Bb2 {[%clk 0:02:46.2]} 13... Bd6 {[%clk 0:02:51.8]}
14. e4 {[%clk 0:02:45.8]} 14... Bg6 {[%clk 0:02:51.5]} 15. e5 {[%clk 0:02:45.4]}
15... Bc7 {[%clk 0:02:50.9]} 16. Qe2 {[%clk 0:02:46.3]} 16... Nd5 {[%clk
0:02:49.8]} 17. Rad1 {[%clk 0:02:47.2]} 17... N7b6 {[%clk 0:02:48.3]} 18. Ne4
{[%clk 0:02:46.6]} 18... a4 {[%clk 0:02:45.6]} 19. bxa4 {[%clk 0:02:45.2]} 19...
Nxa4 {[%clk 0:02:43.5]} 20. Nc5 {[%clk 0:02:44.9]} 20... Nac3 {[%clk 0:02:40]}
21. Bxc3 {[%clk 0:02:44.8]} 21... Nxc3 {[%clk 0:02:40.9]} 22. Qd2 {[%clk
0:02:45.5]} 22... Nxd1 {[%clk 0:02:40.8]} 23. Rxd1 {[%clk 0:02:46.4]} 23... b6
{[%clk 0:02:39.6]} 24. Nb3 {[%clk 0:02:45.9]} 24... Qd7 {[%clk 0:02:38.9]} 25.
Nh4 {[%clk 0:02:44.7]} 25... Rfd8 {[%clk 0:02:35.6]} 26. Nxg6 {[%clk 0:02:44.5]}
26... hxg6 {[%clk 0:02:35.5]} 27. Qc3 {[%clk 0:02:45.4]} 27... Rac8 {[%clk
0:02:26.1]} 28. Bxc6 {[%clk 0:02:43.9]} 28... Bxe5 {[%clk 0:02:19.1]} 29. Bxd7
{[%clk 0:02:38.7]} 29... Rxc3 {[%clk 0:02:18.9]} 30. dxe5 {[%clk 0:02:39.6]}
30... Rc7 {[%clk 0:02:18.7]} 31. Kg2 {[%clk 0:02:34.8]} 31... Rcxd7 {[%clk
0:02:18.8]} 32. Rc1 {[%clk 0:02:35.4]} 32... Ra7 {[%clk 0:02:17.8]} 33. Rc2
{[%clk 0:02:34.8]} 33... Rda8 {[%clk 0:02:16.8]} 34. Nc1 {[%clk 0:02:34.7]}
34... Ra5 {[%clk 0:02:14.3]} 35. f4 {[%clk 0:02:27.3]} 35... Rc5 {[%clk
0:02:12.9]} 36. Rxc5 {[%clk 0:02:22.2]} 36... bxc5 {[%clk 0:02:13.8]} 37. Kf3
{[%clk 0:02:23.1]} 37... Ra3+ {[%clk 0:02:13.1]} 38. Ke4 {[%clk 0:02:22.9]}
38... Rc3 {[%clk 0:02:13.1]} 39. Nd3 {[%clk 0:02:23]} 39... Rc2 {[%clk 0:02:13]}
40. h4 {[%clk 0:02:22]} 40... Rxa2 {[%clk 0:02:12.3]} 41. Nxc5 {[%clk
0:02:21.5]} 41... Ra3 {[%clk 0:02:12.3]} 42. g4 {[%clk 0:02:21.3]} 42... Ra5
{[%clk 0:02:11.5]} 43. Nd3 {[%clk 0:02:20.3]} 43... Ra4+ {[%clk 0:02:10.9]} 44.
Ke3 {[%clk 0:02:20.2]} 44... Kh7 {[%clk 0:02:08.6]} 45. Nf2 {[%clk 0:02:18]}
45... Kh6 {[%clk 0:02:05.1]} 46. Ne4 {[%clk 0:02:17.3]} 46... Ra3+ {[%clk
0:02:03.3]} 47. Kf2 {[%clk 0:02:17.1]} 47... Rh3 {[%clk 0:02:01.9]} 48. Ng5
{[%clk 0:02:17]} 48... Rxh4 {[%clk 0:02:01.6]} 49. Kg3 {[%clk 0:02:16.6]} 49...
Rh1 {[%clk 0:02:00.8]} 50. Nxf7+ {[%clk 0:02:17.5]} 50... Kh7 {[%clk 0:02:00]}
51. Ng5+ {[%clk 0:02:18.4]} 51... Kg8 {[%clk 0:02:00.2]} 52. Nxe6 {[%clk
0:02:17.8]} 52... Kf7 {[%clk 0:02:00.1]} 53. Ng5+ {[%clk 0:02:17.4]} 53... Ke7
{[%clk 0:02:00.3]} 54. Nf3 {[%clk 0:02:15]} 54... Ra1 {[%clk 0:01:59.8]} 55. Kh4
{[%clk 0:02:14.5]} 55... Ra3 {[%clk 0:01:55.7]} 56. Nd4 {[%clk 0:02:13.7]} 56...
Ra4 {[%clk 0:01:55.4]} 57. Ne2 {[%clk 0:02:04.6]} 57... Re4 {[%clk 0:01:53.7]}
58. Nc3 {[%clk 0:02:04.4]} 58... Rc4 {[%clk 0:01:53.2]} 59. Nd5+ {[%clk
0:02:03.4]} 59... Ke6 {[%clk 0:01:52.6]} 60. Ne3 {[%clk 0:01:41.3]} 60... Rxf4
{[%clk 0:01:46.2]} 61. Kg5 {[%clk 0:01:41.3]} 61... Kxe5 {[%clk 0:01:44.5]} 62.
Ng2 {[%clk 0:01:40.7]} 62... Ra4 {[%clk 0:01:42.6]} 63. Nh4 {[%clk 0:01:40.2]}
63... Ke4 {[%clk 0:01:39.2]} 64. Nxg6 {[%clk 0:01:39.1]} 64... Kf3 {[%clk
0:01:38.3]} 65. Ne5+ {[%clk 0:01:36.7]} 65... Kg3 {[%clk 0:01:37.8]} 66. Kg6
{[%clk 0:01:35.3]} 66... Ra5 {[%clk 0:01:34.6]} 67. Nf7 {[%clk 0:01:28.8]} 67...
Kxg4 {[%clk 0:01:30.5]} 68. Kxg7 {[%clk 0:01:29.7]} 68... Ra6 {[%clk 0:01:28.6]}
69. Nh6+ {[%clk 0:01:16]} 69... Kh5 {[%clk 0:01:28.1]} 70. Nf7 {[%clk
0:01:16.9]} 70... Ra7 {[%clk 0:01:27.3]} 71. Kf6 {[%clk 0:01:15.6]} 71... Ra1
{[%clk 0:01:25.2]} 72. Ne5 {[%clk 0:01:14.5]} 72... Kh6 {[%clk 0:01:23.5]} 73.
Ke6 {[%clk 0:01:15.4]} 73... Kg7 {[%clk 0:01:22.9]} 74. Kd5 {[%clk 0:01:14.6]}
74... Kf6 {[%clk 0:01:21.4]} 75. Ng4+ {[%clk 0:01:14.1]} 75... Kf5 {[%clk
0:01:21.2]} 76. Ne3+ {[%clk 0:01:13.6]} 76... Kf4 {[%clk 0:01:21.4]} 77. Nc4
{[%clk 0:01:11.9]} 77... Rd1+ {[%clk 0:01:18.7]} 78. Kc5 {[%clk 0:01:11.4]}
78... Ke4 {[%clk 0:01:17.9]} 79. Nd6+ {[%clk 0:01:12.3]} 79... Kd3 {[%clk
0:01:17.9]} 80. Kc6 {[%clk 0:01:11]} 80... Kd4 {[%clk 0:01:17.4]} 81. Nf5+
{[%clk 0:01:09.5]} 81... Ke4 {[%clk 0:01:16.4]} 82. Nd6+ {[%clk 0:01:07.6]}
82... Ke5 {[%clk 0:01:16.6]} 83. Nc4+ {[%clk 0:01:07.1]} 83... Ke6 {[%clk
0:01:16.8]} 84. Kc5 {[%clk 0:01:06.1]} 84... Rc1 {[%clk 0:01:16.4]} 85. Kd4
{[%clk 0:01:07]} 85... Kf5 {[%clk 0:01:13.1]} 86. Ne3+ {[%clk 0:01:05.5]} 86...
Kf4 {[%clk 0:01:13.4]} 87. Nd5+ {[%clk 0:01:04.6]} 87... Kf3 {[%clk 0:01:13.8]}
88. Nc3 {[%clk 0:01:03.5]} 88... Rh1 {[%clk 0:01:10.9]} 89. Kd3 {[%clk
0:01:04.4]} 89... Rh4 {[%clk 0:01:09.8]} 90. Nd5 {[%clk 0:00:53.4]} 90... Ra4
{[%clk 0:01:07.4]} 91. Nc3 {[%clk 0:00:52.1]} 91... Ra6 {[%clk 0:01:05.8]} 92.
Kd4 {[%clk 0:00:53]} 92... Rd6+ {[%clk 0:01:04.7]} 93. Nd5 {[%clk 0:00:53.4]}
93... Rd8 {[%clk 0:01:00.8]} 94. Ke5 {[%clk 0:00:52.1]} 94... Kg4 {[%clk
0:01:00.4]} 95. Nf6+ {[%clk 0:00:50.9]} 95... Kg5 {[%clk 0:01:00.2]} 96. Nd5
{[%clk 0:00:51.8]} 96... Re8+ {[%clk 0:00:59.2]} 97. Kd6 {[%clk 0:00:51.6]}
97... Kf5 {[%clk 0:00:57.2]} 98. Ne7+ {[%clk 0:00:51.1]} 98... Kf6 {[%clk
0:00:57.1]} 99. Nd5+ {[%clk 0:00:50.1]} 99... Kf7 {[%clk 0:00:57.3]} 100. Kc5
{[%clk 0:00:48.9]} 100... Rd8 {[%clk 0:00:55.6]} 101. Ne3 {[%clk 0:00:24.6]}
101... Ke6 {[%clk 0:00:49.5]} 102. Nc4 {[%clk 0:00:25.5]} 102... Rd1 {[%clk
0:00:47.8]} 103. Ne3 {[%clk 0:00:23.6]} 103... Rc1+ {[%clk 0:00:47.5]} 104. Nc4
{[%clk 0:00:23.1]} 104... Kd7 {[%clk 0:00:45.1]} 105. Kd4 {[%clk 0:00:24]}
105... Kc6 {[%clk 0:00:44.3]} 106. Ne5+ {[%clk 0:00:23.2]} 106... Kd6 {[%clk
0:00:44.3]} 107. Nc4+ {[%clk 0:00:21.7]} 107... Ke6 {[%clk 0:00:44.3]} 108. Ne3
{[%clk 0:00:21]} 108... Rc8 {[%clk 0:00:42.6]} 109. Ke4 {[%clk 0:00:21.9]}
109... Rh8 {[%clk 0:00:41.5]} 110. Kd4 {[%clk 0:00:20.9]} 110... Rh4+ {[%clk
0:00:40.6]} 111. Kd3 {[%clk 0:00:21.8]} 111... Ke5 {[%clk 0:00:40]} 112. Nc4+
{[%clk 0:00:21]} 112... Kd5 {[%clk 0:00:40.3]} 113. Ne3+ {[%clk 0:00:20.1]}
113... Kc5 {[%clk 0:00:40.4]} 114. Nf5 {[%clk 0:00:19]} 114... Rf4 {[%clk
0:00:39.3]} 115. Ne3 {[%clk 0:00:17.8]} 115... Rd4+ {[%clk 0:00:36.2]} 116. Ke2
{[%clk 0:00:17]} 116... Ra4 {[%clk 0:00:33.3]} 117. Kf3 {[%clk 0:00:17.9]}
117... Kd4 {[%clk 0:00:29.9]} 118. Nf5+ {[%clk 0:00:16.7]} 1/2-1/2